[Event "*** Titled Tuesday 3|2 Blitz"]
[Site "Chess.com"]
[Date "2016.05.03"]
[Round "7"]
[White "iturrizaga"]
[Black "evgenyermolaev"]
[Result "1-0"]
[WhiteElo "2572"]
[BlackElo "2293"]
[TimeControl "180+2"]
[EndTime "12:32:49 PDT"]
[Termination "iturrizaga won by resignation"]

1. Nf3 {[%clk 0:03:01.9]} 1... Nf6 {[%clk 0:03:00.4]} 2. c4 {[%clk 0:03:02.2]}
2... c5 {[%clk 0:02:58.5]} 3. Nc3 {[%clk 0:03:03.7]} 3... g6 {[%clk 0:02:59.3]}
4. d4 {[%clk 0:03:03.6]} 4... cxd4 {[%clk 0:03:00.5]} 5. Nxd4 {[%clk 0:03:05.5]}
5... Bg7 {[%clk 0:03:01.6]} 6. g3 {[%clk 0:03:07.2]} 6... O-O {[%clk 0:03:02.1]}
7. Bg2 {[%clk 0:03:08.7]} 7... Nc6 {[%clk 0:03:03.7]} 8. O-O {[%clk 0:03:09]}
8... d6 {[%clk 0:03:05]} 9. Nc2 {[%clk 0:03:09.1]} 9... Be6 {[%clk 0:03:05]} 10.
b3 {[%clk 0:03:10]} 10... Rc8 {[%clk 0:03:05.1]} 11. Bb2 {[%clk 0:03:11.2]}
11... Nd7 {[%clk 0:03:04.3]} 12. Qd2 {[%clk 0:03:12.2]} 12... f5 {[%clk
0:02:58]} 13. Rfd1 {[%clk 0:03:11]} 13... Nc5 {[%clk 0:02:53]} 14. Rac1 {[%clk
0:03:08.9]} 14... a5 {[%clk 0:02:52.3]} 15. Na3 {[%clk 0:03:02.1]} 15... Nb4
{[%clk 0:02:50.1]} 16. Nab5 {[%clk 0:03:01.7]} 16... Bf7 {[%clk 0:02:49.1]} 17.
Qe3 {[%clk 0:02:56.8]} 17... Nxa2 {[%clk 0:02:44.4]} 18. Ra1 {[%clk 0:02:45.9]}
18... Nb4 {[%clk 0:02:37.5]} 19. Rab1 {[%clk 0:02:21]} 19... Nxb3 {[%clk
0:02:31.1]} 20. Bxb7 {[%clk 0:02:02.5]} 20... Rxc4 {[%clk 0:02:26.5]} 21. Bg2
{[%clk 0:02:04.1]} 21... Rc8 {[%clk 0:02:22.1]} 22. Na4 {[%clk 0:01:57.3]} 22...
Nc5 {[%clk 0:02:13.4]} 23. Bxg7 {[%clk 0:01:53.7]} 23... Kxg7 {[%clk 0:02:14.5]}
24. Nac3 {[%clk 0:01:48.2]} 24... Kg8 {[%clk 0:02:03.5]} 25. h4 {[%clk
0:01:45.9]} 25... Rb8 {[%clk 0:01:15.2]} 26. h5 {[%clk 0:01:38.7]} 26... Qd7
{[%clk 0:01:12.9]} 27. Nd4 {[%clk 0:01:36.7]} 27... e5 {[%clk 0:01:04]} 28. Nf3
{[%clk 0:01:37.4]} 28... Qe7 {[%clk 0:00:57.8]} 29. Qh6 {[%clk 0:01:36.7]} 29...
Be8 {[%clk 0:00:51.4]} 30. hxg6 {[%clk 0:01:33.8]} 30... hxg6 {[%clk 0:00:49.4]}
31. Ng5 {[%clk 0:01:33.8]} 31... Ne6 {[%clk 0:00:42.3]} 32. Bd5 {[%clk
0:01:06.5]} 32... Nxd5 {[%clk 0:00:18.5]} 33. Nxd5 {[%clk 0:01:08.4]} 33... Qxg5
{[%clk 0:00:13.1]} 34. Qxg5 {[%clk 0:01:10]} 34... Nxg5 {[%clk 0:00:13.9]} 35.
Rxb8 {[%clk 0:01:10.5]} 35... a4 {[%clk 0:00:13.7]} 36. Rb6 {[%clk 0:01:08.2]}
36... a3 {[%clk 0:00:06.7]} 37. Rxd6 {[%clk 0:01:06.5]} 37... Bf7 {[%clk
0:00:08]} 38. Ra6 {[%clk 0:00:57.8]} 38... Kg7 {[%clk 0:00:04.1]} 39. Rxa3
{[%clk 0:00:57.4]} 39... Rd8 {[%clk 0:00:05.3]} 40. Ra7 {[%clk 0:00:58.1]} 40...
Kh6 {[%clk 0:00:05.3]} 41. Ne3 {[%clk 0:00:57.2]} 41... Rxd1+ {[%clk 0:00:04.4]}
42. Nxd1 {[%clk 0:00:59.1]} 42... Ne4 {[%clk 0:00:05.8]} 43. Rxf7 {[%clk
0:00:55.1]} 1-0

[Event "*** Titled Tuesday 3|2 Blitz"]
[Site "Chess.com"]
[Date "2016.05.03"]
[Round "7"]
[White "bugsbunny444"]
[Black "JusticeBot"]
[Result "1-0"]
[WhiteElo "2388"]
[BlackElo "2525"]
[TimeControl "180+2"]
[EndTime "12:32:54 PDT"]
[Termination "bugsbunny444 won by resignation"]

1. Nf3 {[%clk 0:03:01.9]} 1... Nf6 {[%clk 0:03:00.6]} 2. c4 {[%clk 0:03:02.4]}
2... e6 {[%clk 0:03:02.3]} 3. g3 {[%clk 0:03:03.6]} 3... d5 {[%clk 0:03:02.7]}
4. Bg2 {[%clk 0:03:05.1]} 4... Nbd7 {[%clk 0:03:03.5]} 5. O-O {[%clk 0:03:05.1]}
5... dxc4 {[%clk 0:03:01.8]} 6. Qc2 {[%clk 0:03:05.5]} 6... c5 {[%clk
0:02:49.8]} 7. Na3 {[%clk 0:03:04.2]} 7... a6 {[%clk 0:02:49.2]} 8. Nxc4 {[%clk
0:02:59.1]} 8... b5 {[%clk 0:02:48.7]} 9. Nce5 {[%clk 0:03:00.3]} 9... Bb7
{[%clk 0:02:48.6]} 10. Nxf7 {[%clk 0:02:56.6]} 10... Be4 {[%clk 0:02:21]} 11.
Nxd8 {[%clk 0:02:43.6]} 11... Bxc2 {[%clk 0:02:15.6]} 12. Nxe6 {[%clk
0:02:44.3]} 12... Bd6 {[%clk 0:02:13.6]} 13. d3 {[%clk 0:02:35.7]} 13... Ke7
{[%clk 0:01:54.6]} 14. Nxg7 {[%clk 0:02:32.9]} 14... b4 {[%clk 0:01:48.8]} 15.
Nf5+ {[%clk 0:02:26.6]} 15... Ke6 {[%clk 0:01:50.3]} 16. Nxd6 {[%clk 0:02:24.2]}
16... Kxd6 {[%clk 0:01:52.2]} 17. Bf4+ {[%clk 0:02:24.1]} 17... Ke7 {[%clk
0:01:51.3]} 18. b3 {[%clk 0:02:21.3]} 18... a5 {[%clk 0:01:46.3]} 19. Rac1
{[%clk 0:02:15.7]} 19... a4 {[%clk 0:01:47]} 20. Rxc2 {[%clk 0:02:16.1]} 20...
axb3 {[%clk 0:01:47.1]} 21. axb3 {[%clk 0:02:18]} 21... Ra3 {[%clk 0:01:47.8]}
22. Nd2 {[%clk 0:02:12.5]} 22... Kd8 {[%clk 0:01:42.6]} 23. Bd6 {[%clk
0:02:05.4]} 23... Re8 {[%clk 0:01:39.5]} 24. Bf3 {[%clk 0:02:04]} 24... Re6
{[%clk 0:01:36.6]} 25. Bxc5 {[%clk 0:02:01.5]} 25... Nxc5 {[%clk 0:01:35.2]} 26.
Rxc5 {[%clk 0:02:02]} 26... Ra2 {[%clk 0:01:36.4]} 27. Ne4 {[%clk 0:01:58.2]}
27... Nd7 {[%clk 0:01:36.5]} 28. Rd5 {[%clk 0:01:47.9]} 28... Ke7 {[%clk
0:01:36.5]} 29. Rxd7+ {[%clk 0:01:47]} 29... Kxd7 {[%clk 0:01:37.3]} 30. Nc5+
{[%clk 0:01:34]} 30... Ke7 {[%clk 0:01:39.2]} 31. Nxe6 {[%clk 0:01:34.5]} 31...
Kxe6 {[%clk 0:01:41.1]} 32. Rb1 {[%clk 0:01:29.7]} 32... Ke5 {[%clk 0:01:36.6]}
33. Kf1 {[%clk 0:01:21.3]} 33... Kd4 {[%clk 0:01:35.9]} 34. Rc1 {[%clk
0:01:18.3]} 34... h5 {[%clk 0:01:15.7]} 35. Rc4+ {[%clk 0:01:17.2]} 35... Ke5
{[%clk 0:01:17.6]} 36. h4 {[%clk 0:01:12.9]} 36... Rb2 {[%clk 0:01:17.1]} 37.
Rxb4 {[%clk 0:01:13.3]} 37... Rc2 {[%clk 0:01:17.2]} 38. Rc4 {[%clk 0:01:05.7]}
38... Rb2 {[%clk 0:01:17.7]} 39. Bxh5 {[%clk 0:01:03.8]} 39... Rxb3 {[%clk
0:01:17.9]} 40. Bf3 {[%clk 0:01:03.6]} 40... Ra3 {[%clk 0:01:17.6]} 41. Kg2
{[%clk 0:01:02.7]} 41... Ra7 {[%clk 0:01:17.7]} 42. g4 {[%clk 0:01:03.6]} 42...
Rh7 {[%clk 0:01:11.4]} 43. Kg3 {[%clk 0:01:04.8]} 43... Ra7 {[%clk 0:01:10.7]}
44. e3 {[%clk 0:01:02.4]} 44... Rd7 {[%clk 0:01:11.2]} 45. Rc5+ {[%clk
0:01:00.8]} 45... Kf6 {[%clk 0:01:11.8]} 46. d4 {[%clk 0:00:59.1]} 46... Ra7
{[%clk 0:01:11.1]} 47. Rc6+ {[%clk 0:00:58.2]} 47... Kg7 {[%clk 0:01:11.9]} 48.
Rb6 {[%clk 0:00:57.4]} 48... Ra1 {[%clk 0:01:12.6]} 49. g5 {[%clk 0:00:55.3]}
49... Rf1 {[%clk 0:01:11.3]} 50. h5 {[%clk 0:00:52.3]} 50... Rg1+ {[%clk
0:01:12.1]} 51. Bg2 {[%clk 0:00:49.9]} 51... Kf7 {[%clk 0:01:10.6]} 52. h6
{[%clk 0:00:42.7]} 52... Ra1 {[%clk 0:01:10.6]} 53. g6+ {[%clk 0:00:42.8]} 53...
Kf8 {[%clk 0:01:08]} 54. Rb8+ {[%clk 0:00:39.6]} 54... Ke7 {[%clk 0:01:09.1]}
55. g7 {[%clk 0:00:32.8]} 55... Ra6 {[%clk 0:01:08.3]} 56. g8=Q {[%clk
0:00:31.5]} 56... Rg6+ {[%clk 0:01:09]} 57. Qxg6 {[%clk 0:00:31.8]} 1-0

[Event "*** Titled Tuesday 3|2 Blitz"]
[Site "Chess.com"]
[Date "2016.05.03"]
[Round "7"]
[White "Inopov"]
[Black "MinhGTrAn"]
[Result "0-1"]
[WhiteElo "2464"]
[BlackElo "2628"]
[TimeControl "180+2"]
[EndTime "12:32:55 PDT"]
[Termination "MinhGTrAn won by resignation"]

1. d4 {[%clk 0:03:01.9]} 1... Nf6 {[%clk 0:03:01.1]} 2. c4 {[%clk 0:03:02.6]}
2... e6 {[%clk 0:03:02.7]} 3. Nc3 {[%clk 0:03:02.8]} 3... Bb4 {[%clk 0:03:03.4]}
4. f3 {[%clk 0:03:03.9]} 4... Nc6 {[%clk 0:03:03.3]} 5. e4 {[%clk 0:03:01]} 5...
e5 {[%clk 0:03:04.3]} 6. a3 {[%clk 0:02:56.1]} 6... Bxc3+ {[%clk 0:02:59.7]} 7.
bxc3 {[%clk 0:02:56.7]} 7... d6 {[%clk 0:03:00.7]} 8. Be3 {[%clk 0:02:41.4]}
8... O-O {[%clk 0:03:00.6]} 9. Bd3 {[%clk 0:02:42.6]} 9... b6 {[%clk 0:03:01.7]}
10. Ne2 {[%clk 0:02:42.2]} 10... Ba6 {[%clk 0:03:02.2]} 11. Ng3 {[%clk
0:02:36.2]} 11... Na5 {[%clk 0:02:58.2]} 12. Qe2 {[%clk 0:02:37.2]} 12... Qd7
{[%clk 0:02:53.2]} 13. a4 {[%clk 0:02:20.8]} 13... Qe6 {[%clk 0:02:47]} 14. d5
{[%clk 0:02:04.8]} 14... Qe8 {[%clk 0:02:46.6]} 15. O-O {[%clk 0:02:05.2]} 15...
Nd7 {[%clk 0:02:45]} 16. f4 {[%clk 0:01:54.1]} 16... exf4 {[%clk 0:02:46.9]} 17.
Rxf4 {[%clk 0:01:47.2]} 17... Ne5 {[%clk 0:02:48.8]} 18. Nf5 {[%clk 0:01:37.7]}
18... Bxc4 {[%clk 0:02:45.8]} 19. Bxc4 {[%clk 0:01:37.2]} 19... Naxc4 {[%clk
0:02:47.7]} 20. Bd4 {[%clk 0:01:37.1]} 20... f6 {[%clk 0:02:45.9]} 21. Bf2
{[%clk 0:01:29.4]} 21... g5 {[%clk 0:02:42.4]} 22. Rf3 {[%clk 0:01:05.5]} 22...
Nxf3+ {[%clk 0:02:39.8]} 23. gxf3 {[%clk 0:01:07.4]} 23... Ne5 {[%clk
0:02:41.4]} 24. Kh1 {[%clk 0:01:07.8]} 24... Kh8 {[%clk 0:02:41.9]} 25. Nd4
{[%clk 0:01:07.6]} 25... Qh5 {[%clk 0:02:40.8]} 26. Rg1 {[%clk 0:01:03.5]} 26...
Rae8 {[%clk 0:02:34.7]} 27. Rg3 {[%clk 0:01:04]} 27... Ng6 {[%clk 0:02:05]} 28.
Qc4 {[%clk 0:01:02.7]} 28... Rf7 {[%clk 0:02:00]} 29. Nf5 {[%clk 0:01:01.7]}
29... Ne7 {[%clk 0:01:43.5]} 30. Nd4 {[%clk 0:00:57.6]} 30... Rg8 {[%clk
0:01:34.2]} 31. Ne6 {[%clk 0:00:51.3]} 31... Ng6 {[%clk 0:01:35.5]} 32. Be3
{[%clk 0:00:32.4]} 32... h6 {[%clk 0:01:28.2]} 33. Qf1 {[%clk 0:00:30.9]} 33...
Nh4 {[%clk 0:01:22.6]} 34. Qh3 {[%clk 0:00:24.7]} 34... f5 {[%clk 0:01:18.1]}
35. Bd4+ {[%clk 0:00:18.5]} 35... Kh7 {[%clk 0:01:18.7]} 36. e5 {[%clk
0:00:16.4]} 36... dxe5 {[%clk 0:01:18.7]} 37. Bxe5 {[%clk 0:00:17.6]} 37... c6
{[%clk 0:01:17.7]} 38. c4 {[%clk 0:00:13.8]} 38... cxd5 {[%clk 0:01:17.9]} 39.
cxd5 {[%clk 0:00:15.7]} 39... g4 {[%clk 0:01:15]} 40. Qf1 {[%clk 0:00:09.9]}
40... Nxf3 {[%clk 0:01:14.6]} 41. Rxf3 {[%clk 0:00:10.5]} 41... gxf3 {[%clk
0:01:15.4]} 42. d6 {[%clk 0:00:12]} 42... f2 {[%clk 0:01:07.4]} 43. Bg3 {[%clk
0:00:12]} 43... Qf3+ {[%clk 0:01:08.1]} 0-1

[Event "*** Titled Tuesday 3|2 Blitz"]
[Site "Chess.com"]
[Date "2016.05.03"]
[Round "7"]
[White "chito89"]
[Black "Kacparov"]
[Result "1-0"]
[WhiteElo "2698"]
[BlackElo "2604"]
[TimeControl "180+2"]
[EndTime "12:32:57 PDT"]
[Termination "chito89 won by checkmate"]

1. e4 {[%clk 0:02:56.2]} 1... c5 {[%clk 0:03:00.7]} 2. Nc3 {[%clk 0:02:51.3]}
2... e6 {[%clk 0:03:01.8]} 3. Nf3 {[%clk 0:02:50.1]} 3... a6 {[%clk 0:03:02.7]}
4. g3 {[%clk 0:02:50.1]} 4... b5 {[%clk 0:03:03.3]} 5. Bg2 {[%clk 0:02:50.5]}
5... Bb7 {[%clk 0:03:04.7]} 6. d3 {[%clk 0:02:49.6]} 6... Nc6 {[%clk 0:03:05.4]}
7. O-O {[%clk 0:02:50.1]} 7... d6 {[%clk 0:03:03.9]} 8. Ng5 {[%clk 0:02:39.8]}
8... Be7 {[%clk 0:03:00.9]} 9. f4 {[%clk 0:02:40.2]} 9... Bxg5 {[%clk 0:02:56]}
10. fxg5 {[%clk 0:02:40.1]} 10... Nge7 {[%clk 0:02:55.7]} 11. Be3 {[%clk
0:02:35.5]} 11... Nd4 {[%clk 0:02:50.7]} 12. Ne2 {[%clk 0:02:27.2]} 12... e5
{[%clk 0:02:50]} 13. c3 {[%clk 0:02:18.7]} 13... Nxe2+ {[%clk 0:02:51]} 14. Qxe2
{[%clk 0:02:20.6]} 14... O-O {[%clk 0:02:52]} 15. h4 {[%clk 0:02:21.1]} 15...
Rc8 {[%clk 0:02:44.4]} 16. h5 {[%clk 0:02:20.7]} 16... d5 {[%clk 0:02:42.8]} 17.
h6 {[%clk 0:02:20.4]} 17... g6 {[%clk 0:02:43.9]} 18. Qf2 {[%clk 0:02:11]} 18...
d4 {[%clk 0:02:27.8]} 19. cxd4 {[%clk 0:02:10.1]} 19... cxd4 {[%clk 0:02:28.2]}
20. Bd2 {[%clk 0:02:06.7]} 20... Nc6 {[%clk 0:02:21.1]} 21. Rac1 {[%clk
0:02:04.1]} 21... Qd6 {[%clk 0:01:53]} 22. Bh3 {[%clk 0:01:53.3]} 22... Rcd8
{[%clk 0:01:48.6]} 23. a3 {[%clk 0:01:51.7]} 23... a5 {[%clk 0:01:45.4]} 24. Qf6
{[%clk 0:01:50.4]} 24... Qxf6 {[%clk 0:01:45.2]} 25. Rxf6 {[%clk 0:01:51.8]}
25... b4 {[%clk 0:01:38.6]} 26. Rfxc6 {[%clk 0:01:49.6]} 26... Bxc6 {[%clk
0:01:39.1]} 27. Rxc6 {[%clk 0:01:51.1]} 27... bxa3 {[%clk 0:01:40]} 28. bxa3
{[%clk 0:01:52.2]} 28... Rb8 {[%clk 0:01:40.9]} 29. Bxa5 {[%clk 0:01:50.4]}
29... Rb3 {[%clk 0:01:41.7]} 30. Bf1 {[%clk 0:01:49]} 30... Rfb8 {[%clk
0:01:40.5]} 31. Bb4 {[%clk 0:01:48.6]} 31... Rb1 {[%clk 0:01:38]} 32. Kg2 {[%clk
0:01:47.5]} 32... Rb2+ {[%clk 0:01:37.9]} 33. Kf3 {[%clk 0:01:44.1]} 33... Rb1
{[%clk 0:01:38.2]} 34. Be2 {[%clk 0:01:42.4]} 34... Re8 {[%clk 0:01:31.1]} 35.
Bd6 {[%clk 0:01:39.5]} 35... f6 {[%clk 0:01:27.6]} 36. gxf6 {[%clk 0:01:39.4]}
36... Kf7 {[%clk 0:01:29.3]} 37. Rc7+ {[%clk 0:01:32.1]} 37... Kxf6 {[%clk
0:01:30.2]} 38. Rxh7 {[%clk 0:01:31.3]} 38... Rh1 {[%clk 0:01:14.5]} 39. Kg2
{[%clk 0:01:30.4]} 39... Re1 {[%clk 0:01:15.6]} 40. Bg4 {[%clk 0:01:10.6]} 40...
g5 {[%clk 0:00:30.8]} 41. Rg7 {[%clk 0:01:03.4]} 41... Rb1 {[%clk 0:00:08.4]}
42. Bf5 {[%clk 0:01:01.7]} 42... Rb2+ {[%clk 0:00:09.3]} 43. Kf3 {[%clk
0:01:02]} 43... g4+ {[%clk 0:00:09.4]} 44. Kxg4 {[%clk 0:01:01.6]} 44... Rh2
{[%clk 0:00:10]} 45. Rg6+ {[%clk 0:00:57.3]} 45... Kf7 {[%clk 0:00:11]} 46. Kg5
{[%clk 0:00:55.7]} 46... Rg2 {[%clk 0:00:04.5]} 47. Rg7# {[%clk 0:00:55.7]} 1-0

[Event "*** Titled Tuesday 3|2 Blitz"]
[Site "Chess.com"]
[Date "2016.05.03"]
[Round "7"]
[White "Wolverine_master"]
[Black "YaWaleriy"]
[Result "0-1"]
[WhiteElo "2000"]
[BlackElo "2178"]
[TimeControl "180+2"]
[EndTime "12:33:00 PDT"]
[Termination "YaWaleriy won by checkmate"]

1. Nf3 {[%clk 0:03:00.9]} 1... d5 {[%clk 0:02:41.4]} 2. d4 {[%clk 0:02:59.3]}
2... e6 {[%clk 0:02:41.8]} 3. b3 {[%clk 0:02:58.9]} 3... Nf6 {[%clk 0:02:42.1]}
4. Bb2 {[%clk 0:02:59.7]} 4... Bd6 {[%clk 0:02:41.5]} 5. e3 {[%clk 0:03:01]}
5... O-O {[%clk 0:02:40.9]} 6. Bd3 {[%clk 0:03:02.4]} 6... b6 {[%clk 0:02:39.1]}
7. Nbd2 {[%clk 0:03:03.3]} 7... Nbd7 {[%clk 0:02:38.5]} 8. O-O {[%clk
0:03:04.3]} 8... Bb7 {[%clk 0:02:39]} 9. Ne5 {[%clk 0:03:05.6]} 9... Qe7 {[%clk
0:02:38.4]} 10. f4 {[%clk 0:03:05.9]} 10... Ba3 {[%clk 0:02:37.3]} 11. Bxa3
{[%clk 0:03:03.7]} 11... Qxa3 {[%clk 0:02:35.7]} 12. Nxd7 {[%clk 0:02:58.1]}
12... Nxd7 {[%clk 0:02:31.8]} 13. f5 {[%clk 0:02:58.5]} 13... Qe7 {[%clk
0:02:24.1]} 14. fxe6 {[%clk 0:02:09.2]} 14... Qxe6 {[%clk 0:02:02.4]} 15. Qe2
{[%clk 0:02:07.3]} 15... Rae8 {[%clk 0:01:59.3]} 16. Rae1 {[%clk 0:02:07]} 16...
c5 {[%clk 0:01:56.9]} 17. Qh5 {[%clk 0:01:26.5]} 17... g6 {[%clk 0:01:55.4]} 18.
Qh4 {[%clk 0:01:24.7]} 18... f5 {[%clk 0:01:51.7]} 19. Nf3 {[%clk 0:01:22]}
19... Qf6 {[%clk 0:01:48.8]} 20. Qg3 {[%clk 0:01:16.3]} 20... Qg7 {[%clk
0:01:46.7]} 21. Qc7 {[%clk 0:01:15.8]} 21... Nf6 {[%clk 0:01:46.6]} 22. Qxg7+
{[%clk 0:01:14.9]} 22... Kxg7 {[%clk 0:01:47.3]} 23. Ne5 {[%clk 0:01:16.5]}
23... Re7 {[%clk 0:01:44]} 24. c4 {[%clk 0:01:14.8]} 24... dxc4 {[%clk
0:01:34.4]} 25. Bxc4 {[%clk 0:01:15.2]} 25... Bd5 {[%clk 0:01:34.4]} 26. Bxd5
{[%clk 0:01:07.5]} 26... Nxd5 {[%clk 0:01:34.8]} 27. e4 {[%clk 0:01:07]} 27...
fxe4 {[%clk 0:01:32.9]} 28. Rxf8 {[%clk 0:01:06.9]} 28... Kxf8 {[%clk
0:01:33.3]} 29. Rxe4 {[%clk 0:01:03.3]} 29... cxd4 {[%clk 0:01:33.3]} 30. Re1
{[%clk 0:00:59.9]} 30... Nc3 {[%clk 0:01:23.9]} 31. Rf1+ {[%clk 0:00:51.6]}
31... Kg7 {[%clk 0:01:23]} 32. Nf3 {[%clk 0:00:51]} 32... d3 {[%clk 0:01:21.7]}
33. a3 {[%clk 0:00:38.4]} 33... g5 {[%clk 0:01:15.6]} 34. Nd2 {[%clk 0:00:30.4]}
34... Re2 {[%clk 0:01:03.4]} 35. Rc1 {[%clk 0:00:26]} 35... Nd5 {[%clk
0:00:50.1]} 36. Nf3 {[%clk 0:00:21.2]} 36... Ne3 {[%clk 0:00:47.8]} 37. Rc3
{[%clk 0:00:16.4]} 37... Rxg2+ {[%clk 0:00:38.6]} 38. Kh1 {[%clk 0:00:14.5]}
38... Rf2 {[%clk 0:00:36.5]} 39. Nxg5 {[%clk 0:00:02.6]} 39... Rf1# {[%clk
0:00:35.8]} 0-1

[Event "*** Titled Tuesday 3|2 Blitz"]
[Site "Chess.com"]
[Date "2016.05.03"]
[Round "7"]
[White "Iball95"]
[Black "pKiLz5Rn9b"]
[Result "0-1"]
[WhiteElo "2484"]
[BlackElo "2404"]
[TimeControl "180+2"]
[EndTime "12:33:14 PDT"]
[Termination "pKiLz5Rn9b won by checkmate"]

1. e4 {[%clk 0:03:01.9]} 1... e6 {[%clk 0:03:01]} 2. d4 {[%clk 0:03:02.3]} 2...
d5 {[%clk 0:03:02.5]} 3. Nc3 {[%clk 0:03:03.9]} 3... Nf6 {[%clk 0:03:03.8]} 4.
Bg5 {[%clk 0:03:00]} 4... Be7 {[%clk 0:03:03.9]} 5. e5 {[%clk 0:03:00.7]} 5...
Nfd7 {[%clk 0:03:05.2]} 6. Bxe7 {[%clk 0:03:02.1]} 6... Qxe7 {[%clk 0:03:07.1]}
7. f4 {[%clk 0:03:03.4]} 7... O-O {[%clk 0:03:07.5]} 8. Nf3 {[%clk 0:03:04.4]}
8... c5 {[%clk 0:03:09]} 9. Be2 {[%clk 0:03:02.3]} 9... Nc6 {[%clk 0:03:09.9]}
10. dxc5 {[%clk 0:02:59.3]} 10... f6 {[%clk 0:03:11.2]} 11. exf6 {[%clk
0:02:47.7]} 11... Nxf6 {[%clk 0:03:12.3]} 12. O-O {[%clk 0:02:47.7]} 12... Qxc5+
{[%clk 0:03:10.7]} 13. Kh1 {[%clk 0:02:48.2]} 13... Bd7 {[%clk 0:03:12.3]} 14.
Nb5 {[%clk 0:02:47.1]} 14... Ne4 {[%clk 0:03:05.7]} 15. Nfd4 {[%clk 0:02:45.1]}
15... Rae8 {[%clk 0:03:03]} 16. c3 {[%clk 0:02:41.3]} 16... a6 {[%clk
0:03:02.2]} 17. Nxc6 {[%clk 0:02:41.4]} 17... bxc6 {[%clk 0:03:04.1]} 18. Nd4
{[%clk 0:02:41.6]} 18... Qb6 {[%clk 0:03:04.7]} 19. Qc1 {[%clk 0:02:29.9]} 19...
c5 {[%clk 0:03:03.7]} 20. Nf3 {[%clk 0:02:30.1]} 20... Bb5 {[%clk 0:03:04.7]}
21. Bxb5 {[%clk 0:02:11.2]} 21... axb5 {[%clk 0:03:06.6]} 22. Ne5 {[%clk
0:02:11.5]} 22... Rf5 {[%clk 0:03:07.7]} 23. Qe3 {[%clk 0:02:08.6]} 23... Qb7
{[%clk 0:03:06.5]} 24. Nd3 {[%clk 0:01:49.6]} 24... Qc7 {[%clk 0:03:04.4]} 25.
a4 {[%clk 0:01:46.7]} 25... bxa4 {[%clk 0:03:02]} 26. Rxa4 {[%clk 0:01:46.9]}
26... Ref8 {[%clk 0:03:03.7]} 27. c4 {[%clk 0:01:27.8]} 27... g5 {[%clk
0:03:00.6]} 28. cxd5 {[%clk 0:01:24.2]} 28... exd5 {[%clk 0:03:01.7]} 29. g3
{[%clk 0:01:08.9]} 29... gxf4 {[%clk 0:03:00.4]} 30. Nxf4 {[%clk 0:01:09.7]}
30... Qc6 {[%clk 0:03:01]} 31. Ra7 {[%clk 0:00:58.5]} 31... R8f7 {[%clk
0:02:55.6]} 32. Rxf7 {[%clk 0:00:58.1]} 32... Kxf7 {[%clk 0:02:57.5]} 33. Kg1
{[%clk 0:00:54]} 33... Qb5 {[%clk 0:02:54.3]} 34. b3 {[%clk 0:00:47]} 34... Qa6
{[%clk 0:02:47.3]} 35. Rd1 {[%clk 0:00:46.2]} 35... Qc6 {[%clk 0:02:37.7]} 36.
Qd3 {[%clk 0:00:36]} 36... c4 {[%clk 0:02:32.7]} 37. bxc4 {[%clk 0:00:36.4]}
37... dxc4 {[%clk 0:02:24.9]} 38. Qd7+ {[%clk 0:00:29.4]} 38... Qxd7 {[%clk
0:02:25.4]} 39. Rxd7+ {[%clk 0:00:31.3]} 39... Kf6 {[%clk 0:02:26]} 40. Rxh7
{[%clk 0:00:23.1]} 40... Rc5 {[%clk 0:02:26.8]} 41. Rh6+ {[%clk 0:00:22]} 41...
Kf7 {[%clk 0:02:26.8]} 42. Rh7+ {[%clk 0:00:22.5]} 42... Kg8 {[%clk 0:02:26.9]}
43. Re7 {[%clk 0:00:23.6]} 43... Nd6 {[%clk 0:02:22.4]} 44. Re6 {[%clk
0:00:23.1]} 44... Nb5 {[%clk 0:02:18.8]} 45. Ne2 {[%clk 0:00:22.3]} 45... c3
{[%clk 0:02:20.1]} 46. Kg2 {[%clk 0:00:23.1]} 46... c2 {[%clk 0:02:21.3]} 47.
Nc1 {[%clk 0:00:24.6]} 47... Rd5 {[%clk 0:02:19.8]} 48. Re2 {[%clk 0:00:25.6]}
48... Na3 {[%clk 0:02:20.8]} 49. Re3 {[%clk 0:00:24.4]} 49... Nc4 {[%clk
0:02:14.3]} 50. Rc3 {[%clk 0:00:24]} 50... Rd2+ {[%clk 0:02:15.6]} 51. Kf3
{[%clk 0:00:22.7]} 51... Ne5+ {[%clk 0:02:13.3]} 52. Ke4 {[%clk 0:00:24.1]}
52... Ng4 {[%clk 0:02:12.9]} 53. h3 {[%clk 0:00:23.6]} 53... Nh2 {[%clk
0:02:07.4]} 54. g4 {[%clk 0:00:21.8]} 54... Nf1 {[%clk 0:02:08.2]} 55. h4 {[%clk
0:00:21.8]} 55... Rg2 {[%clk 0:02:06.2]} 56. Kf5 {[%clk 0:00:20.9]} 56... Ng3+
{[%clk 0:01:56.7]} 57. Kg6 {[%clk 0:00:21.5]} 57... Kf8 {[%clk 0:01:58.3]} 58.
g5 {[%clk 0:00:21.2]} 58... Ne4 {[%clk 0:01:59.4]} 59. Rc8+ {[%clk 0:00:20.5]}
59... Ke7 {[%clk 0:02:00.9]} 60. Kf5 {[%clk 0:00:21.3]} 60... Nd6+ {[%clk
0:02:01.6]} 61. Kf4 {[%clk 0:00:19]} 61... Nxc8 {[%clk 0:02:03.5]} 62. h5 {[%clk
0:00:20.9]} 62... Rg1 {[%clk 0:02:04.9]} 63. Ne2 {[%clk 0:00:22.1]} 63... Re1
{[%clk 0:02:05.7]} 64. h6 {[%clk 0:00:21.4]} 64... Rxe2 {[%clk 0:02:06.7]} 65.
h7 {[%clk 0:00:23.3]} 65... c1=Q+ {[%clk 0:02:07.8]} 66. Kf5 {[%clk 0:00:24.1]}
66... Nd6+ {[%clk 0:02:09.1]} 67. Kg6 {[%clk 0:00:25.2]} 67... Qc2+ {[%clk
0:02:10.6]} 68. Kg7 {[%clk 0:00:26.7]} 68... Nf5+ {[%clk 0:02:09.8]} 69. Kg8
{[%clk 0:00:27.5]} 69... Qc8# {[%clk 0:02:09.4]} 0-1